bitfinex-derivatives/quotes_SOLF0:USTF0_20251020
["timestamp","ask_amount","ask_price","bid_price","bid_amount"]
[1760945018866,2.86,194.07,194.06,1.12]
[1760945020674,2.86,194.1,194.07,2.61]
[1760945020864,2.86,194.1,194.07,4.73014709]
[1760945022369,2.86,194.09,194.07,2.12014709]
[1760945023780,2.86,194.09,194.06,1.12]
[1760945023976,4.6356,194.11,194.06,1.12]
[1760945023977,2.86,194.1,194.06,1.12]
[1760945024174,4.6356,194.11,194.06,1.12]
[1760945024372,2.86,194.09,194.06,1.12]
[1760945024572,2.86,194.1,194.06,1.12]
[1760945024777,2.86,194.08,194.06,1.12]
[1760945024973,2.86,194.1,194.06,1.12]
[1760945025273,2.86,194.08,194.06,1.12]
[1760945025678,2.86,194.07,194.06,1.12]
[1760945026577,6.87129444,194.07,194.06,1.12]
[1760945028976,4.637,194.05,194.0,2.12014709]
[1760945029178,4.01129444,194.04,193.98,2.12014709]
[1760945029381,2.75,194.02,193.98,2.12014709]
[1760945029581,2.75,194.06,193.98,2.12014709]
[1760945029777,2.75,194.04,193.98,2.12014709]
[1760945030078,2.75,194.02,193.98,4.79014709]
[1760945030474,4.77646424,194.06,193.98,4.79014709]
[1760945030678,2.75,194.04,193.98,4.79014709]
[1760945030879,2.75,194.02,193.98,4.79014709]
[1760945031373,4.02369105,194.01,193.98,4.79014709]
[1760945031581,4.6374,194.04,193.98,4.79014709]
[1760945031781,2.75,194.02,193.98,4.79014709]
[1760945031984,4.02369105,194.01,193.98,4.79014709]
[1760945032185,2.75,194.02,193.98,4.79014709]
[1760945032383,4.02689793,194.01,193.98,4.79014709]
[1760945032583,2.75,194.02,193.98,4.79014709]
[1760945032883,4.02689793,194.01,193.98,4.79014709]
[1760945033086,2.75,194.02,193.98,4.79014709]
[1760945033287,4.02689793,194.01,193.98,4.79014709]
[1760945033482,4.02649572,194.0,193.96,4.79014709]
[1760945033682,2.75,193.98,193.94,4.79014709]
[1760945033984,4.0270372,193.97,193.91,2.12014709]
[1760945034284,6.7770372,193.96,193.92,2.67]
[1760945034487,2.75,193.96,193.92,2.67]
[1760945034686,4.6386,193.99,193.92,2.67]
[1760945034883,6.77439784,193.98,193.92,2.67]
[1760945035094,4.02439784,193.97,193.92,2.67]
[1760945035391,12.16446424,194.01,193.93,4.79014709]
[1760945035586,4.02229916,194.0,193.93,4.79014709]
[1760945035889,4.02229916,193.99,193.93,4.79014709]
[1760945036088,4.02229916,193.98,193.93,2.12014709]
[1760945036289,4.02229916,193.98,193.94,2.67]
[1760945036290,4.02229916,193.97,193.94,2.67]
[1760945036491,2.75,193.98,193.94,2.67]
[1760945036691,4.02077956,193.97,193.94,2.67]
[1760945036894,2.75,193.98,193.94,2.67]
[1760945037190,4.02077956,193.97,193.94,2.67]
[1760945037391,2.75,193.98,193.94,2.67]
[1760945037887,4.6384,194.0,193.94,2.67]
[1760945038189,4.01946861,193.99,193.98,2.67]
[1760945038387,2.75,194.03,193.97,4.79014709]
[1760945038684,6.76858091,194.02,193.98,2.67]
[1760945038884,6.76858091,194.01,193.98,2.67]
[1760945039090,4.01858091,194.0,193.98,2.67]
[1760945039292,2.75,194.01,193.98,2.67]
[1760945039488,2.75,193.99,193.91,3.31975339]
[1760945039694,4.01822175,193.98,193.92,2.67]
[1760945039895,2.75,193.99,193.92,2.67]
[1760945040088,4.0183892,193.98,193.92,2.67]
[1760945040291,2.75,193.99,193.92,2.67]
[1760945040484,4.01858601,193.98,193.92,2.67]
[1760945040690,2.75,193.99,193.92,2.67]
[1760945042394,2.75,193.99,193.92,5.98975339]
[1760945043292,7.3876,194.03,193.94,2.67]
[1760945043492,4.01804622,194.02,193.94,2.67]
[1760945043696,4.01804622,194.01,193.94,2.67]
[1760945043895,4.01804622,194.0,193.94,2.67]
[1760945044097,2.75,194.0,193.94,2.67]
[1760945045901,2.75,193.98,193.91,2.67]
[1760945046402,4.6391,193.97,193.91,2.67]
[1760945046599,2.75,193.98,193.91,2.67]
[1760945046801,9.62432564,194.07,193.86,3.31975339]
[1760945046802,2.75,193.96,193.87,2.67]
[1760945047998,4.6396,193.95,193.87,2.67]
[1760945048711,4.6398,193.93,193.87,2.67]
[1760945049698,7.3903,193.92,193.85,42.78]
[1760945051203,2.75,193.92,193.85,2.67]
[1760945051504,2.75,193.92,193.86,2.67]
[1760945052401,3.31975339,193.99,193.89,2.67]
[1760945052402,2.75,193.99,193.89,2.67]
[1760945052606,2.75,193.96,193.89,2.67]
[1760945054103,7.3893,193.96,193.89,2.67]
[1760945055609,4.6398,193.93,193.86,2.87]
[1760945055905,2.67,193.94,193.86,2.87]
[1760945057010,4.6399,193.93,193.86,2.87]
[1760945061809,4.6403,193.92,193.86,2.87]
[1760945062005,7.3903,193.92,193.86,2.87]
[1760945062211,2.75,193.92,193.86,2.87]
[1760945062509,2.75,193.9,193.83,2.72]
[1760945063006,3.31975339,193.93,193.79,7.363]
[1760945063310,2.75,193.9,193.8,2.72]
[1760945064011,4.6412,193.88,193.8,2.72]
[1760945064213,7.3912,193.88,193.8,2.72]
[1760945064404,2.75,193.88,193.8,2.72]
[1760945064604,4.6413,193.87,193.8,2.72]
[1760945067510,4.6418,193.86,193.8,2.72]
[1760945067709,2.75,193.9,193.77,2.72]
[1760945067916,2.75,193.88,193.77,2.72]
[1760945069115,4.642,193.85,193.77,2.72]
[1760945073417,2.75,193.86,193.79,2.72]
[1760945073714,2.75,193.9,193.79,2.72]
[1760945073916,2.75,193.88,193.79,2.72]
[1760945074217,2.75,193.86,193.79,2.72]
[1760945074907,4.6415,193.87,193.8,4.6429]
[1760945075112,4.6415,193.87,193.81,2.72]
[1760945075716,4.6415,193.87,193.78,2.72]
[1760945075717,2.75,193.86,193.78,2.72]
[1760945076410,7.3907,193.9,193.8,2.72]
[1760945076611,4.02500958,193.89,193.8,2.72]
[1760945076809,4.02500958,193.88,193.8,2.72]
[1760945077014,4.02500958,193.87,193.8,2.72]
[1760945077217,2.75,193.9,193.8,2.72]
[1760945077416,4.02575334,193.89,193.8,2.72]
[1760945077617,4.02575334,193.88,193.8,2.72]
[1760945077812,4.02575334,193.87,193.8,2.72]
[1760945078015,4.641,193.89,193.8,7.3627]
[1760945078210,4.02555224,193.88,193.8,7.3627]
[1760945078514,4.02555224,193.87,193.8,7.3627]
[1760945078713,4.77646424,193.91,193.8,7.3627]
[1760945079020,4.6412,193.88,193.8,7.3627]
[1760945079219,4.02669511,193.87,193.8,7.3627]
[1760945079514,4.6412,193.88,193.8,7.3627]
[1760945079709,4.02658106,193.87,193.8,7.3627]
[1760945079908,4.6412,193.88,193.81,2.72]
[1760945080217,4.02658106,193.87,193.81,2.72]
[1760945080413,4.6412,193.88,193.81,2.72]
[1760945080614,4.02654771,193.87,193.81,2.72]
[1760945080811,4.6412,193.88,193.81,2.72]
[1760945081012,4.02650666,193.87,193.81,2.72]
[1760945081221,4.6412,193.88,193.81,2.72]
[1760945081521,4.02672101,193.87,193.81,2.72]
[1760945081820,2.75,193.89,193.83,2.72]
[1760945082115,4.6406,193.9,193.83,2.72]
[1760945082820,2.75,193.89,193.83,2.72]
[1760945083120,2.75,193.89,193.83,7.3622]
[1760945086620,2.75,193.89,193.81,4.6427]
[1760945086621,2.75,193.88,193.81,4.6427]
[1760945087228,2.75,193.88,193.82,2.72]
[1760945088925,2.75,193.88,193.82,7.3623]
[1760945092225,2.75,193.88,193.82,2.72]
[1760945092827,2.75,193.91,193.83,4.6421]
[1760945093023,2.75,193.89,193.83,4.6421]
[1760945093224,4.03718594,193.88,193.82,2.72]
[1760945093423,2.75,193.89,193.82,2.72]
[1760945093624,4.03797315,193.88,193.82,2.72]
[1760945093826,2.75,193.89,193.82,2.72]
[1760945094032,4.03797315,193.88,193.82,2.72]
[1760945094230,2.75,193.89,193.82,2.72]
[1760945094435,4.03260177,193.88,193.82,2.72]
[1760945094634,7.391,193.89,193.82,2.72]
[1760945094933,4.03264288,193.88,193.82,2.72]
[1760945095134,7.391,193.89,193.82,2.72]
[1760945095337,4.03301238,193.88,193.82,2.72]
[1760945095632,7.391,193.89,193.82,2.72]
[1760945095833,4.03301238,193.88,193.82,2.72]
[1760945096032,2.75,193.89,193.82,7.3623]
[1760945096235,4.03341449,193.88,193.82,7.3623]
[1760945096434,2.75,193.89,193.82,7.3623]
[1760945096633,4.03341338,193.88,193.82,7.3623]
[1760945096833,2.75,193.89,193.82,7.3623]
[1760945097034,4.03341393,193.88,193.82,7.3623]
[1760945097235,4.03341393,193.87,193.83,2.86]
[1760945097431,2.75,193.89,193.83,2.86]
[1760945097735,6.78385155,193.88,193.84,2.86]
[1760945097927,4.03385155,193.87,193.84,2.86]
[1760945098132,2.75,193.88,193.84,2.86]
[1760945098437,4.03444809,193.87,193.84,2.86]
[1760945098739,2.75,193.88,193.84,2.86]
[1760945100033,4.03592175,193.87,193.84,2.86]
[1760945100237,2.75,193.88,193.84,2.86]
[1760945100437,4.03592114,193.87,193.84,2.86]
[1760945100634,2.75,193.88,193.85,2.86]
[1760945100839,6.78592114,193.87,193.85,2.86]
[1760945101140,2.75,193.87,193.85,2.86]
[1760945101440,2.75,193.87,193.81,2.86]
[1760945101639,4.87770778,193.86,193.82,2.86]
[1760945101840,2.75,193.85,193.82,2.86]
[1760945102045,2.12770778,193.86,193.82,2.86]
[1760945102236,2.12770778,193.86,193.77,38.58]
[1760945102237,2.75,193.85,193.79,2.86]
[1760945102743,2.12770778,193.83,193.79,2.86]
[1760945102932,2.75,193.82,193.79,2.86]
[1760945104635,2.75,193.82,193.76,7.5038]
[1760945105036,2.12770778,193.8,193.76,7.5038]
[1760945105345,4.87770778,193.8,193.76,7.5038]
[1760945105745,2.75,193.79,193.76,7.5038]
[1760945106841,2.75,193.79,193.77,2.86]
[1760945107046,4.6422,193.84,193.77,2.86]
[1760945107245,2.12770778,193.81,193.78,2.86]
[1760945107547,4.87770778,193.81,193.78,2.86]
[1760945108446,2.12770778,193.81,193.78,2.86]
[1760945109337,4.87770778,193.81,193.78,2.86]
[1760945110746,4.87770778,193.81,193.77,4.6435]
[1760945110946,4.87770778,193.81,193.78,2.86]
[1760945111844,2.75,193.8,193.75,7.5041]
[1760945112040,2.75,193.8,193.77,2.86]
[1760945112243,2.12770778,193.81,193.75,4.6441]
[1760945112541,4.87770778,193.81,193.75,4.6441]
[1760945113856,4.87770778,193.81,193.74,2.86]
[1760945114161,2.61,193.77,193.69,2.61]
[1760945114755,2.12770778,193.75,193.69,2.61]
[1760945114955,2.12770778,193.75,193.69,7.2554]
[1760945116552,2.12770778,193.75,193.67,42.8]
[1760945116553,2.12770778,193.72,193.66,2.61]
[1760945117556,2.68,193.71,193.66,2.61]
[1760945117755,4.80770778,193.72,193.66,2.61]
[1760945118560,4.80770778,193.69,193.66,2.61]
[1760945118760,2.12770778,193.69,193.63,2.86]
[1760945119858,4.80770778,193.66,193.62,2.86]
[1760945120058,2.12770778,193.66,193.61,42.82]
[1760945120264,2.68,193.65,193.61,42.82]
[1760945121358,4.80770778,193.66,193.58,2.86]
[1760945121558,2.68,193.66,193.58,2.86]
[1760945121864,2.12770778,193.67,193.58,2.86]
[1760945122761,2.12770778,193.71,193.63,2.86]
[1760945124066,2.12770778,193.71,193.64,4.6468]
[1760945124457,2.68,193.73,193.64,4.6468]
[1760945124768,4.80770778,193.73,193.65,2.86]
[1760945125063,4.80770778,193.73,193.67,2.86]
[1760945130564,2.68,193.73,193.67,2.86]
[1760945131370,2.68,193.73,193.67,7.5061]
[1760945131868,2.12770778,193.77,193.69,4.6456]
[1760945132068,2.12770778,193.77,193.7,2.86]
[1760945132968,2.12770778,193.77,193.71,4.6451]
[1760945136373,2.12770778,193.77,193.73,2.86]
[1760945136676,4.80770778,193.77,193.73,2.86]
[1760945138572,2.68,193.76,193.73,2.86]
[1760945139073,2.12770778,193.77,193.72,2.86]
[1760945139272,2.12770778,193.77,193.73,2.86]
[1760945139571,2.12770778,193.77,193.72,2.86]
[1760945139774,2.12770778,193.77,193.71,4.6451]
[1760945139969,4.80770778,193.77,193.73,2.86]
[1760945140168,4.80770778,193.77,193.71,4.6451]
[1760945140671,4.80770778,193.77,193.73,2.86]
[1760945141575,4.80770778,193.77,193.74,2.86]
[1760945142068,2.68,193.76,193.72,7.5047]
[1760945142273,2.68,193.76,193.73,2.86]
[1760945142873,2.12770778,193.77,193.74,2.86]
[1760945143979,2.68,193.76,193.7,2.86]
[1760945144677,2.12770778,193.77,193.7,2.86]
[1760945144979,2.12770778,193.77,193.71,4.6451]
[1760945147180,2.12770778,193.74,193.72,2.67]
[1760945147681,4.74770778,193.74,193.71,4.6451]
[1760945148079,4.74770778,193.74,193.71,7.3151]
[1760945148780,4.74770778,193.74,193.68,4.6457]
[1760945148976,4.74770778,193.71,193.65,2.67]
[1760945149473,4.74770778,193.71,193.68,2.67]
[1760945150174,4.74770778,193.71,193.67,7.3159]
[1760945150375,4.74770778,193.71,193.68,2.67]
[1760945150976,2.12770778,193.71,193.67,4.6459]
[1760945151173,2.12770778,193.71,193.68,2.67]
[1760945152178,4.74770778,193.71,193.68,2.67]
[1760945152774,2.62,193.7,193.67,7.3159]
[1760945153280,2.12770778,193.71,193.68,2.67]
[1760945153478,4.74770778,193.71,193.68,2.67]
[1760945154782,4.74770778,193.71,193.67,7.3159]
[1760945154982,4.74770778,193.71,193.68,2.67]
[1760945157177,2.12770778,193.71,193.69,2.67]
[1760945157375,2.12770778,193.71,193.7,2.67]
[1760945157882,2.12770778,193.71,193.68,7.3156]
[1760945158485,2.62,193.72,193.68,7.3156]
[1760945159584,3.32972641,193.75,193.69,2.67]
[1760945159786,3.32972641,193.75,193.69,7.3154]
[1760945161573,3.32972641,193.75,193.69,4.6454]
[1760945161774,5.94972641,193.75,193.69,4.6454]
[1760945162284,5.94972641,193.78,193.72,2.67]
[1760945162474,6.68964533,193.77,193.73,2.67]
[1760945162680,6.68964533,193.76,193.73,2.67]
[1760945162879,4.06964533,193.75,193.73,2.67]
[1760945163078,3.32972641,193.78,193.64,26.46]
[1760945163079,3.32972641,193.78,193.72,7.3147]
[1760945163289,6.68879219,193.77,193.73,2.67]
[1760945163583,4.06879219,193.76,193.73,2.67]
[1760945163784,4.06879219,193.75,193.73,2.67]
[1760945163987,3.32972641,193.78,193.73,2.67]
[1760945164187,6.68867451,193.77,193.73,2.67]
[1760945164384,4.06867451,193.76,193.73,2.67]
[1760945164590,6.68867451,193.75,193.64,42.82]
[1760945164785,2.62,193.75,193.65,2.67]
[1760945165489,3.32972641,193.77,193.72,2.67]
[1760945165790,4.06857099,193.76,193.73,2.67]
[1760945165989,2.62,193.79,193.73,2.67]
[1760945166187,2.62,193.77,193.73,2.67]
[1760945166490,6.6885758,193.76,193.73,2.67]
[1760945166787,2.62,193.76,193.73,2.67]
[1760945167489,4.07211643,193.75,193.73,2.67]
[1760945167790,2.62,193.76,193.73,2.67]
[1760945167992,4.07264382,193.75,193.73,2.67]
[1760945168292,2.62,193.76,193.73,2.67]
[1760945168492,6.69440369,193.75,193.71,4.6449]
[1760945168793,2.62,193.75,193.72,2.67]
[1760945168986,2.62,193.79,193.71,7.3149]
[1760945169186,4.07475171,193.78,193.71,7.3149]
[1760945169389,4.07475171,193.77,193.71,7.3149]
[1760945169590,4.07475171,193.76,193.72,2.67]
[1760945169797,4.07475171,193.75,193.73,2.67]
[1760945169990,7.39646424,193.79,193.73,2.67]
[1760945170292,2.62,193.76,193.73,2.67]
[1760945170595,4.07525656,193.75,193.73,2.67]
[1760945170787,2.62,193.76,193.73,2.67]
[1760945170987,4.07553421,193.75,193.73,2.67]
[1760945171187,2.62,193.78,193.72,2.67]
[1760945171387,2.62,193.76,193.72,2.67]
[1760945171687,4.07562751,193.75,193.72,2.67]
[1760945171983,2.62,193.76,193.72,2.67]
[1760945172296,4.07598424,193.75,193.72,2.67]
[1760945172594,2.62,193.76,193.72,2.67]
[1760945172892,4.07649137,193.75,193.72,7.3147]
[1760945173090,2.62,193.76,193.73,2.86]
[1760945173287,4.07658124,193.75,193.73,2.86]
[1760945173488,2.62,193.76,193.73,2.86]
[1760945173689,4.07706343,193.75,193.73,2.86]
[1760945173890,2.62,193.76,193.73,2.86]
[1760945174092,4.07706399,193.75,193.73,2.86]
[1760945174291,2.62,193.76,193.73,2.86]
[1760945174490,4.07771392,193.75,193.73,2.86]
[1760945174696,4.07771392,193.74,193.73,2.86]
[1760945175289,2.62,193.76,193.73,2.86]
[1760945175489,4.0782198,193.75,193.73,2.86]
[1760945175689,2.85,193.78,193.73,2.86]
[1760945175888,4.07821792,193.77,193.73,2.86]
[1760945176095,4.07821792,193.76,193.73,2.86]
[1760945176294,6.92821792,193.75,193.7,2.86]
[1760945176486,6.92821792,193.74,193.7,2.86]
[1760945176686,2.85,193.74,193.7,2.86]
[1760945176887,2.85,193.74,193.7,42.82]
[1760945177085,2.85,193.74,193.71,2.59]
[1760945177296,2.75,193.77,193.71,2.59]
[1760945177490,6.82875253,193.76,193.7,42.82]
[1760945177691,4.07875253,193.75,193.63,2.59]
[1760945177892,4.07875253,193.74,193.7,42.82]
[1760945178091,2.75,193.78,193.7,50.0552]
[1760945178297,4.07882944,193.77,193.7,7.2352]
[1760945178493,4.07882944,193.76,193.7,50.0552]
[1760945178795,6.82882944,193.75,193.7,47.4652]
[1760945178996,4.07882944,193.74,193.7,47.4652]
[1760945179297,2.75,193.75,193.71,2.59]
[1760945179496,4.078849,193.74,193.7,4.6452]
[1760945179696,2.75,193.75,193.72,2.59]
[1760945179901,4.078849,193.74,193.72,2.59]
[1760945180097,2.75,193.75,193.71,2.59]
[1760945180298,4.07892421,193.74,193.72,2.59]
[1760945180492,2.75,193.75,193.71,45.41]
[1760945180695,4.07890064,193.74,193.73,2.59]
[1760945180891,2.75,193.79,193.73,2.59]
[1760945181091,4.07881423,193.78,193.72,2.59]
[1760945181294,4.07881423,193.77,193.72,2.59]
[1760945181496,4.07881423,193.76,193.72,2.59]
[1760945181694,4.07881423,193.75,193.74,2.59]
[1760945182597,2.75,193.79,193.73,47.4645]
[1760945182894,4.77646424,193.8,193.73,47.4645]
[1760945182895,2.75,193.77,193.73,47.4645]
[1760945183097,2.75,193.75,193.73,4.6445]
[1760945183501,2.75,193.75,193.72,42.82]
[1760945183695,2.75,193.78,193.71,7.2351]
[1760945184001,2.75,193.76,193.72,42.82]
[1760945184195,6.82858787,193.75,193.72,45.41]
[1760945184397,2.75,193.75,193.72,45.41]
[1760945184595,2.75,193.75,193.72,2.59]
[1760945184799,2.75,193.75,193.72,45.41]
[1760945185900,2.75,193.75,193.73,2.59]
[1760945186592,2.75,193.75,193.72,42.82]
[1760945186799,2.75,193.75,193.72,45.41]
[1760945187000,2.75,193.78,193.73,2.59]
[1760945187198,2.75,193.76,193.73,2.59]
[1760945187495,4.0780366,193.75,193.73,2.59]
[1760945187796,4.77646424,193.79,193.72,47.4647]
[1760945188001,2.75,193.77,193.74,2.59]
[1760945188196,4.07817742,193.76,193.74,2.59]
[1760945188401,4.07817742,193.75,193.74,2.59]
[1760945188603,4.07817742,193.75,193.72,4.6447]
[1760945188797,4.77646424,193.79,193.73,2.59]
[1760945189003,2.75,193.77,193.74,2.59]
[1760945189203,4.07832591,193.76,193.74,2.59]
[1760945189396,4.07832591,193.75,193.74,2.59]
[1760945189600,4.07832591,193.75,193.73,45.41]
[1760945189801,2.75,193.78,193.73,45.41]
[1760945190000,2.75,193.76,193.73,45.41]
[1760945190299,4.07837378,193.75,193.73,2.59]
[1760945190504,2.75,193.76,193.73,45.39]
[1760945190705,4.07852877,193.75,193.73,45.39]
[1760945190904,2.75,193.76,193.73,45.39]
[1760945191106,4.07852877,193.75,193.73,45.39]
[1760945191309,4.07852877,193.74,193.73,45.39]
[1760945192707,4.07852877,193.74,193.73,2.59]
[1760945192906,4.07852877,193.74,193.73,45.39]
[1760945197707,2.75,193.78,193.73,45.39]
[1760945197915,6.82929713,193.77,193.73,45.39]
[1760945198113,6.82929713,193.76,193.73,45.39]
[1760945198313,4.07929713,193.75,193.73,45.39]
[1760945198514,4.07929713,193.74,193.73,45.39]
[1760945200312,4.07929713,193.74,193.73,42.8]
[1760945200609,6.82929713,193.74,193.73,42.8]
[1760945201116,4.07929713,193.74,193.73,42.8]
[1760945201412,6.82929713,193.74,193.73,42.8]
[1760945205718,4.07929713,193.74,193.73,42.8]
[1760945206518,4.07929713,193.74,193.73,45.39]
[1760945220927,4.07929713,193.74,193.73,47.51904736]
[1760945221123,2.12904736,193.82,193.73,47.51904736]
[1760945221124,4.82909523,193.82,193.77,4.6436]
[1760945221323,2.78,193.82,193.78,23.03]
[1760945221523,4.82909523,193.83,193.78,20.36]
[1760945221725,2.78,193.81,193.78,2.67]
[1760945221925,2.78,193.81,193.79,27.86]
[1760945222931,4.82909523,193.83,193.79,27.86]
[1760945223231,2.78,193.83,193.79,27.86]
[1760945223427,2.78,193.8,193.79,27.86]
[1760945223932,2.12904736,193.81,193.79,27.86]
[1760945224431,2.12904736,193.81,193.79,30.53]
[1760945224625,2.12904736,193.81,193.8,2.67]
[1760945224826,4.90904736,193.84,193.79,27.86]
[1760945225026,2.78,193.83,193.8,2.67]
[1760945225932,2.78,193.83,193.8,7.3127]
[1760945226237,2.78,193.83,193.81,2.67]
[1760945229035,2.12904736,193.84,193.8,4.6427]
[1760945229229,2.12904736,193.84,193.81,2.67]
[1760945229432,2.12904736,193.84,193.82,2.67]
[1760945229734,2.78,193.86,193.82,2.67]
[1760945230135,2.12904736,193.87,193.82,2.67]
[1760945230336,2.78,193.86,193.83,2.67]
[1760945232832,2.12904736,193.87,193.83,2.67]
[1760945233137,6.70343402,193.86,193.83,2.67]
[1760945233337,4.00343402,193.85,193.83,2.67]
[1760945233535,2.7,193.86,193.83,2.67]
[1760945233836,4.00245279,193.85,193.83,2.67]
[1760945234037,2.7,193.86,193.83,2.67]
[1760945234634,4.82904736,193.87,193.84,2.8]
[1760945234835,4.00154294,193.86,193.84,2.8]
[1760945235033,4.82904736,193.87,193.84,2.8]
[1760945235236,4.00154351,193.86,193.84,2.8]
[1760945235431,4.82904736,193.87,193.84,2.8]
[1760945236035,2.12904736,193.87,193.84,2.8]
[1760945236238,2.7,193.87,193.84,2.8]
[1760945236537,2.7,193.87,193.83,2.8]
[1760945236737,2.7,193.87,193.84,2.8]
[1760945237336,2.7,193.87,193.84,2.78]
[1760945238135,2.7,193.87,193.83,4.642]
[1760945238532,2.7,193.87,193.84,2.78]
[1760945239638,2.7,193.87,193.85,2.78]
[1760945240336,2.7,193.87,193.84,2.78]
[1760945240942,2.6,193.89,193.83,4.642]
[1760945241236,2.6,193.87,193.84,2.78]
[1760945242432,2.6,193.9,193.84,2.78]
[1760945243744,2.6,193.9,193.84,2.12904736]
[1760945243944,2.6,193.9,193.86,4.6415]
[1760945244146,2.6,193.9,193.87,2.78]
[1760945244340,2.12904736,193.92,193.82,2.78]
[1760945244545,2.6,193.87,193.82,7.4225]
[1760945244941,2.12904736,193.88,193.82,7.4225]
[1760945245342,2.6,193.87,193.82,7.4225]
[1760945245542,4.72904736,193.88,193.82,7.4225]
[1760945247350,2.6,193.88,193.82,7.4225]
[1760945247550,2.6,193.91,193.84,2.78]
[1760945247744,2.6,193.89,193.84,2.78]
[1760945247949,2.6,193.9,193.84,2.78]
[1760945248141,2.12904736,193.91,193.84,2.78]
[1760945248142,2.6,193.88,193.84,2.78]
[1760945248645,2.6,193.9,193.84,2.78]
[1760945248847,2.6,193.88,193.84,2.78]
[1760945249043,2.6,193.9,193.84,2.78]
[1760945249352,2.6,193.9,193.87,2.78]
[1760945249550,2.6,193.92,193.85,4.6417]
[1760945249846,3.98413913,193.91,193.84,2.78]
[1760945250051,8.71318649,193.9,193.84,2.78]
[1760945250249,4.72904736,193.9,193.84,2.78]
[1760945251450,2.6,193.9,193.84,2.78]
[1760945251851,2.6,193.9,193.84,4.90904736]
[1760945252055,2.6,193.9,193.84,9.55084736]
[1760945253154,6.41890575,193.94,193.87,2.78]
[1760945253347,2.6,193.92,193.87,2.78]
[1760945253548,2.6,193.9,193.87,2.78]
[1760945254047,2.6,193.9,193.86,6.77034736]
[1760945254252,2.6,193.9,193.87,2.78]
[1760945255754,2.6,193.9,193.86,6.77034736]
[1760945255952,2.6,193.93,193.88,2.12904736]
[1760945256256,2.6,193.91,193.88,4.90904736]
[1760945257157,2.6,193.91,193.89,2.78]
[1760945257557,4.6394,193.95,193.88,2.12904736]
[1760945257753,6.58594744,193.94,193.88,2.12904736]
[1760945257957,3.98594744,193.93,193.88,2.12904736]
[1760945258157,3.98594744,193.92,193.88,2.12904736]
[1760945258361,2.6,193.9,193.88,2.12904736]
[1760945258853,2.6,193.9,193.88,4.90904736]
[1760945261362,2.6,193.93,193.88,4.90904736]
[1760945261559,6.58907459,193.92,193.88,4.90904736]
[1760945261759,3.98907459,193.91,193.88,4.90904736]
[1760945261956,2.6,193.91,193.88,4.90904736]
[1760945262155,3.99031829,193.9,193.88,4.90904736]
[1760945262359,2.6,193.91,193.88,4.90904736]
[1760945262559,3.99031793,193.9,193.88,4.90904736]
[1760945262856,2.6,193.94,193.88,4.90904736]
[1760945263061,2.6,193.92,193.88,4.90904736]
[1760945263261,6.59031885,193.91,193.88,4.90904736]
[1760945263464,3.99031885,193.9,193.88,4.90904736]
[1760945263761,2.6,193.91,193.88,4.90904736]